fUST/lending_fUST_20240115
["ID","MTS","AMOUNT","RATE_DAILY","PERIOD"]
[311565816,1705248239861,-154.9690062,0.00020999,4]
[311565826,1705248307817,185.1445784,0.00020899,2]
[311565833,1705248462022,1351.57459177,0.00020899,5]
[311565834,1705248478014,1351.57459177,0.00020899,5]
[311565835,1705248500014,1351.57459177,0.00020899,5]
[311565837,1705248518037,1351.57459177,0.00020899,5]
[311565838,1705248536019,1351.57459177,0.00020899,5]
[311565840,1705248562027,1351.57459177,0.00020899,5]
[311565841,1705248580022,431.75382608,0.00020899,5]
[311565937,1705248632619,-232.6595565,0.00021,2]
[311565938,1705248632628,-2253.26635706,0.00021,2]
[311565939,1705248632639,-166.17801597,0.00021,2]
[311565940,1705248632648,-154.9690062,0.00023499,4]
[311565941,1705248632658,-154.9690062,0.000235,2]
[311565942,1705248632667,-686.2120147,0.00025,2]
[311566008,1705248638745,-341.42779087,0.00025,2]
[311566010,1705248638755,-350.53289224,0.00028139,2]
[311566011,1705248638802,-4446.89769883,0.00028139,2]
[311566012,1705248638813,-4797.43059107,0.0002814,2]
[311566013,1705248638822,-958.52123298,0.00028141,2]
[311566042,1705248641541,-17342.95272868,0.00028141,2]
[311566044,1705248641553,-6598.52603834,0.00028141,2]
[311566047,1705248641563,-519.53125,0.00028657,3]
[311566049,1705248641572,-3137.29711924,0.00028657,4]
[311566051,1705248641581,-1198.05265562,0.00028657,4]
[311566053,1705248641593,-2301.94734438,0.00028657,4]
[311566055,1705248641603,-94.81076831,0.00028657,4]
[311566176,1705248643615,-1841.47159154,0.00028657,4]
[311566177,1705248643626,-500.0,0.00028657,4]
[311566241,1705248646729,-743.65191733,0.00028657,4]
[311566242,1705248646738,-522.57590805,0.00030133,4]
[311566243,1705248646747,-744.02266723,0.00030134,4]
[311566244,1705248646756,-500.0,0.00030136,2]
[311566245,1705248646766,-2007.36725295,0.00032,15]
[311566387,1705249832964,-154.9690062,0.00026106,4]
[311566388,1705249832973,-425.2676334,0.00026107,2]
[311566389,1705249832982,-166.666666,0.00026108,2]
[311566390,1705249832992,-348.87076349,0.00026557,2]
[311566391,1705249833001,-166.666666,0.00026997,2]
[311566392,1705249833010,-3811.01043263,0.0002773,2]
[311566393,1705249833018,-6697.31517228,0.00027731,2]
[311566394,1705249833030,-2433.25754962,0.00027731,2]
[311566396,1705249837913,-15769.4272781,0.00027731,2]
[311566397,1705249837923,-166.666666,0.00027887,2]
[311566398,1705249837932,-4797.43059107,0.00028,2]
[311566399,1705249837943,-1650.27785019,0.00028669,4]
[311566400,1705249837952,-768.42227814,0.00028672,4]
[311566401,1705249837961,-166.666666,0.00028777,2]
[311566402,1705249837970,-166.666666,0.00029666,2]
[311566404,1705249837979,-348.87076349,0.00031557,2]
[311566406,1705249837988,-562.89801629,0.00031996,4]
[311566408,1705249837999,-313.76040023,0.00031998,4]
[311566410,1705249838008,-848.50269182,0.00032,15]
[311566413,1705249838017,-173.0,0.00033,2]
[311566415,1705249838025,-319.25153112,0.0003307,15]
[311566416,1705249838034,-1991.13711695,0.00033071,2]
[311566418,1705249838043,-1000.0,0.00034,7]
[311566420,1705249838052,-173.0,0.00034521,2]
[311566423,1705249838061,-5000.0,0.00034593,7]
[311566425,1705249838070,-500.0,0.00034998,2]
[311566426,1705249838079,-591.39358162,0.00035,2]
[311566428,1705249838088,-154.9690062,0.00035,4]
[311566429,1705249838097,-1493.09574604,0.00035614,7]
[311566432,1705249838106,-511.110803,0.00035616,120]
[311566434,1705249838115,-232.0535,0.00035621,2]
[311566436,1705249838124,-10726.56663779,0.00035637,2]
[311566438,1705249838133,-789.53,0.0003569,3]
[311566440,1705249838142,-10008.93893718,0.000357,2]
[311566442,1705249838164,-12685.99999984,0.000357,2]
[311566613,1705249840807,-174.0,0.00033,2]
[311566614,1705249840817,-6736.50975385,0.000357,2]
[311566615,1705249840828,-6677.09321773,0.000357,2]
[311566617,1705249840839,-4550.42497619,0.000357,2]
[311566624,1705249840850,-1887.64989921,0.000357,2]
[311566626,1705249840957,-2519.94933662,0.000357,2]
[311566627,1705249840968,-1046.92951441,0.000357,2]
[311566657,1705249843237,-408.35520436,0.000357,2]
[311566658,1705249843299,-1086.027425,0.000357,2]
[311566678,1705249846092,-27546.68905186,0.000357,2]
[311566679,1705249846101,-150.5,0.0003577,30]
[311566680,1705249846110,-494.0,0.0003577,30]
[311566681,1705249846119,-150.5,0.0003578,30]
[311566682,1705249846128,-494.0,0.0003578,30]
[311566683,1705249846137,-1652.02661977,0.00035788,4]
[311566684,1705249846147,-7030.39654495,0.00035788,4]
[311566685,1705249846156,-8131.73203149,0.00035788,4]
[311566686,1705249846165,-3929.4931246,0.00035789,4]
[311566687,1705249846174,-269.89243995,0.00035789,4]
[311566688,1705249846184,-322.13312744,0.00035789,4]
[311566689,1705249846193,-221.06387007,0.00035789,4]
[311566690,1705249846205,-1272.86454547,0.00035789,2]
[311566691,1705249846214,-150.5,0.0003579,30]
[311566692,1705249846224,-494.0,0.0003579,30]
[311566693,1705249846233,-901.94254877,0.00035798,4]
[311566694,1705249846243,-478.52138415,0.00035798,4]
[311566695,1705249846253,-8961.85654012,0.00035798,4]
[311566696,1705249846263,-176.68786473,0.00035798,4]
[311566697,1705249846273,-155.00310006,0.00035798,4]
[311566698,1705249846282,-164.45627792,0.00035798,4]
[311566699,1705249846292,-1030.14329585,0.00035798,4]
[311566700,1705249846302,-155.19848072,0.00035798,4]
[311566701,1705249846311,-197.05257512,0.00035798,4]
[311566702,1705249846321,-251.85333885,0.00035798,4]
[311566703,1705249846331,-337.20341221,0.00035798,5]
[311566704,1705249846342,-1162.32804307,0.00035798,4]
[311566705,1705249846351,-898.23520308,0.00035798,4]
[311566706,1705249846362,-394.34195604,0.00035798,4]
[311566707,1705249846371,-265.13443689,0.00035798,4]
[311566708,1705249846382,-4005.78937176,0.00035798,4]
[311566709,1705249846392,-2667.70730284,0.00035798,4]
[311566710,1705249846402,-326.84593778,0.00035799,4]
[311566711,1705249846412,-213.39589788,0.00035799,4]
[311566712,1705249846422,-234.59852192,0.00035799,4]
[311566713,1705249846432,-47122.33262979,0.00035799,14]
[311566714,1705249846442,-250.0,0.00035799,10]
[311566715,1705249846451,-145956.62047654,0.000358,2]
[311566716,1705249846469,-323.87814094,0.000358,2]
[311566717,1705249846482,-519.11288423,0.000358,2]
[311567001,1705251032017,-154.9690062,0.00025637,2]
[311567003,1705251032027,-186.63292485,0.00025637,2]
[311567015,1705251038182,-238.63470855,0.00025637,2]
[311567016,1705251038191,-154.9690062,0.00025638,4]
[311567017,1705251038201,-1985.5364354,0.00025653,2]
[311567018,1705251038211,-2992.7707043,0.00025654,2]
[311567019,1705251038219,-217.424302,0.00025841,2]
[311567020,1705251038229,-1941.18233733,0.00026441,2]
[311567021,1705251038238,-185.1445784,0.00026442,2]
[311567022,1705251038247,-24900.0,0.0002659,2]
[311567023,1705251038256,-460.9594683,0.00027,2]
[311567024,1705251038265,-243.45569948,0.00027999,2]
[311567025,1705251038274,-175.37594757,0.00028018,3]
[311567026,1705251038283,-152.36035948,0.00028402,2]
[311567027,1705251038292,-176.89024243,0.00028541,2]
[311567028,1705251038301,-2017.52673186,0.00028672,4]
[311567029,1705251038311,-1005.45508,0.00028719,2]
[311567030,1705251038320,-16406.82559229,0.00028729,4]
[311567031,1705251038329,-6189.9939204,0.00028729,4]
[311567032,1705251038337,-861.69920381,0.00028729,4]
[311567033,1705251038347,-176.89024243,0.00028886,2]
[311567034,1705251038356,-176.89024243,0.00028912,2]
[311567035,1705251038365,-200.0,0.00029084,15]
[311567036,1705251038374,-176.89024243,0.00029169,2]
[311567037,1705251038383,-176.89024243,0.00029185,2]
[311567038,1705251038391,-176.89024243,0.00029333,2]
[311567039,1705251038401,-1031.91820593,0.00029351,2]
[311567040,1705251038411,-176.89024243,0.00029463,2]
[311567041,1705251038420,-176.89024243,0.00029807,2]
[311567042,1705251038429,-152.36035948,0.00029985,2]
[311567043,1705251038438,-176.89024243,0.00030368,7]
[311567044,1705251038447,-176.89024243,0.00030456,7]
[311567045,1705251038456,-176.89024243,0.0003094,7]
[311567046,1705251038465,-213.64601717,0.00030953,2]
[311567047,1705251038474,-6445.68409549,0.00030967,4]
[311567048,1705251038483,-22081.84839147,0.00031,4]
[311567049,1705251038511,-6620.39562294,0.00031,4]
[311567050,1705251038522,-14808.40580094,0.00031,4]
[311567227,1705251041327,-3319.38818164,0.00031,4]
[311567228,1705251041339,-34323.81086519,0.00031,4]
[311567229,1705251041351,-4404.4,0.00031,4]
[311567230,1705251041385,-620.14389681,0.00031,4]
[311567244,1705251043104,-5865.59601079,0.00031,4]
[311567245,1705251043116,-4875.83533766,0.00031,4]
[311567246,1705251043126,-176.89024243,0.00031053,7]
[311567247,1705251043135,-176.89024243,0.00031063,7]
[311567248,1705251043144,-176.89024243,0.00031271,7]
[311567249,1705251043154,-153.0,0.00031478,2]
[311567250,1705251043167,-153.0,0.00031478,2]
[311567251,1705251043176,-153.0,0.00031478,2]
[311567252,1705251043185,-176.89024243,0.00031535,7]
[311567253,1705251043195,-154.41457912,0.00031584,7]
[311567254,1705251043204,-153.0,0.00031752,2]
[311567255,1705251043213,-153.0,0.00031752,2]
[311567256,1705251043222,-153.0,0.00031752,2]
[311567258,1705251043232,-153.0,0.00031752,2]
[311567260,1705251043241,-153.0,0.00031752,2]
[311567261,1705251043250,-176.89024243,0.00031779,7]
[311567262,1705251043260,-627.83360264,0.00031856,2]
[311567263,1705251043270,-2000.0,0.000319,2]
[311567265,1705251043279,-922.24759406,0.0003191,2]
[311567267,1705251044398,-1077.75240594,0.0003191,2]
[311567268,1705251044409,-2000.0,0.0003192,2]
[311567269,1705251044498,-2000.0,0.0003193,2]
[311567270,1705251044508,-2000.0,0.0003194,2]
[311567271,1705251044517,-2000.0,0.0003195,2]
[311567272,1705251044526,-2000.0,0.0003196,2]
[311567273,1705251044535,-2000.0,0.0003197,2]
[311567274,1705251044544,-2000.0,0.0003198,2]
[311567275,1705251044553,-2000.0,0.0003199,2]
[311567276,1705251044562,-280.0,0.00031992,15]
[311567277,1705251044572,-2000.0,0.00032,2]
[311567278,1705251044581,-2000.0,0.0003201,2]
[311567279,1705251044590,-150.144,0.00032016,2]
[311567280,1705251044599,-2000.0,0.0003202,2]
[311567281,1705251044608,-2000.0,0.0003203,2]
[311567282,1705251044616,-2000.0,0.0003204,2]
[311567283,1705251044625,-2000.0,0.0003205,2]
[311567284,1705251044634,-2000.0,0.0003206,2]
[311567285,1705251044643,-2000.0,0.0003207,2]
[311567286,1705251044651,-3951.205752,0.0003208,2]
[311567287,1705251044661,-176.89024243,0.00032183,7]
[311567288,1705251044670,-1129.78277875,0.00032218,2]
[311567289,1705251044678,-153.0,0.000323,2]
[311567290,1705251044687,-153.0,0.000323,2]
[311567291,1705251044696,-153.0,0.000323,2]
[311567292,1705251044705,-153.0,0.000323,2]
[311567293,1705251044714,-153.0,0.000323,2]
[311567294,1705251044722,-153.0,0.000323,2]
[311567295,1705251044731,-153.0,0.000323,2]
[311567296,1705251044740,-153.0,0.000323,2]
[311567297,1705251044749,-153.0,0.000323,2]
[311567298,1705251044758,-153.0,0.000323,2]
[311567299,1705251044767,-153.0,0.000323,2]
[311567300,1705251044776,-153.0,0.000323,2]
[311567301,1705251044785,-153.0,0.000323,2]
[311567302,1705251044794,-153.0,0.000323,2]
[311567303,1705251044803,-153.0,0.000323,2]
[311567304,1705251044812,-153.0,0.000323,2]
[311567305,1705251044821,-153.0,0.000323,2]
[311567306,1705251044830,-153.0,0.000323,2]
[311567307,1705251044839,-153.0,0.000323,2]
[311567308,1705251044847,-153.0,0.000323,2]
[311567309,1705251044856,-153.0,0.000323,2]
[311567310,1705251044864,-153.0,0.000323,2]
[311567311,1705251044873,-153.0,0.000323,2]
[311567312,1705251044882,-153.0,0.000323,2]
[311567313,1705251044890,-153.0,0.000323,2]
[311567314,1705251044899,-153.0,0.000323,2]
[311567315,1705251044908,-153.0,0.000323,2]
[311567316,1705251044917,-153.0,0.000323,2]
[311567317,1705251044925,-153.0,0.000323,2]
[311567318,1705251044934,-153.0,0.000323,2]
[311567319,1705251044943,-153.0,0.000323,2]
[311567320,1705251044952,-358.8499845,0.000323,2]
[311567321,1705251044961,-152.36035948,0.000323,7]
[311567322,1705251044973,-176.89024243,0.0003242,7]
[311567323,1705251044982,-176.89024243,0.00032433,7]
[311567324,1705251044991,-154.41457912,0.00032436,7]
[311567325,1705251045000,-150.5,0.0003247,30]
[311567326,1705251045010,-346.0,0.0003247,30]
[311567327,1705251045019,-2022.0,0.0003247,30]
[311567328,1705251045028,-150.5,0.0003248,30]
[311567329,1705251045036,-346.0,0.0003248,30]
[311567330,1705251045045,-2022.0,0.0003248,30]
[311567331,1705251045054,-150.5,0.0003249,30]
[311567332,1705251045064,-346.0,0.0003249,30]
[311567333,1705251045073,-2022.0,0.0003249,30]
[311567334,1705251045082,-500.0,0.00032499,2]
[311567335,1705251045091,-500.0,0.00032499,2]
[311567336,1705251045099,-500.0,0.00032499,2]
[311567337,1705251045108,-631.56590733,0.00032499,2]
[311567338,1705251045117,-468.3822033,0.00032499,2]
[311567339,1705251045125,-500.0,0.00032499,2]
[311567340,1705251045134,-484.99005718,0.00032499,2]
[311567341,1705251045143,-618.13063559,0.00032499,2]
[311567342,1705251045152,-500.0,0.00032499,2]
[311567343,1705251045162,-300.6442386,0.00032499,2]
[311567344,1705251045171,-500.0,0.00032499,2]
[311567345,1705251045179,-627.33372202,0.00032499,2]
[311567346,1705251045188,-321446.63072612,0.000325,20]
[311567347,1705251045197,-213.64601716,0.00032762,2]
[311567348,1705251045206,-176.89024243,0.00032862,7]
[311567349,1705251045214,-319.25153112,0.00033,15]
[311567350,1705251045223,-176.89024243,0.00033011,7]
[311567351,1705251045232,-518.87514413,0.0003304,4]
[311567352,1705251045241,-236.09212716,0.0003304,4]
[311567353,1705251045249,-202.83475516,0.0003304,4]
[311567354,1705251045258,-407.73507483,0.0003304,4]
[311567355,1705251045267,-500.0,0.0003304,4]
[311567356,1705251045276,-207.85288165,0.0003304,7]
[311567357,1705251045285,-500.0,0.0003304,7]
[311567358,1705251045293,-213.59797669,0.0003304,7]
[311567359,1705251045302,-378.9395444,0.0003304,7]
[311567360,1705251045311,-200.73522999,0.0003304,7]
[311567361,1705251045320,-595.50029151,0.0003304,7]
[311567362,1705251045329,-600.48317895,0.0003304,7]
[311567363,1705251045338,-500.0,0.0003304,7]
[311567364,1705251045347,-500.0,0.0003304,7]
[311567365,1705251045356,-500.0,0.0003304,7]
[311567366,1705251045366,-153.0,0.00033041,2]
[311567367,1705251045375,-153.0,0.00033041,2]
[311567368,1705251045384,-153.0,0.00033041,2]
[311567369,1705251045393,-153.0,0.00033041,2]
[311567370,1705251045402,-153.0,0.00033041,2]
[311567371,1705251045413,-153.0,0.00033041,2]
[311567372,1705251045422,-153.0,0.00033041,2]
[311567373,1705251045432,-247.4862076,0.00033178,2]
[311567374,1705251045440,-370.7592716,0.00033178,2]
[311567375,1705251045449,-153.0,0.00033178,2]
[311567376,1705251045458,-153.0,0.00033178,2]
[311567377,1705251045470,-153.0,0.00033178,2]
[311567378,1705251045479,-153.0,0.00033178,2]
[311567379,1705251045488,-153.0,0.00033178,2]
[311567380,1705251045497,-153.0,0.00033178,2]
[311567381,1705251045506,-153.0,0.00033178,2]
[311567382,1705251045515,-152.36035948,0.00033257,7]
[311567383,1705251045524,-620.39168013,0.00033449,2]
[311567384,1705251045534,-150.0,0.000337,2]
[311567385,1705251045543,-1500.0,0.000338,2]
[311567386,1705251045553,-151.2478173,0.00033838,2]
[311567387,1705251045561,-153.0,0.00033978,2]
[311567388,1705251045571,-198.8089634,0.00033978,2]
[311567389,1705251045580,-153.0,0.00033978,2]
[311567390,1705251045589,-198.8089634,0.00033978,2]
[311567391,1705251045598,-155.01395126,0.00034,4]
[311567392,1705251045607,-153.0,0.00034,2]
[311567393,1705251045616,-153.0,0.00034,2]
[311567394,1705251045624,-153.0,0.00034,2]
[311567395,1705251045634,-153.0,0.00034,2]
[311567396,1705251045643,-153.0,0.00034,2]
[311567397,1705251045651,-153.0,0.00034,2]
[311567398,1705251045661,-153.0,0.00034,2]
[311567399,1705251045670,-153.0,0.00034,2]
[311567400,1705251045679,-153.0,0.00034,2]
[311567401,1705251045689,-153.0,0.00034,2]
[311567402,1705251045698,-153.0,0.00034,2]
[311567403,1705251045707,-153.0,0.00034,2]
[311567404,1705251045717,-153.0,0.00034,2]
[311567405,1705251045726,-153.0,0.00034,2]
[311567406,1705251045735,-153.0,0.00034,2]
[311567407,1705251045744,-153.0,0.00034,2]
[311567408,1705251045754,-454.0188928,0.00034,2]
[311567409,1705251045762,-153.0,0.00034,2]
[311567410,1705251045772,-153.0,0.00034,2]
[311567411,1705251045780,-153.0,0.00034,2]
[311567412,1705251045790,-153.0,0.00034,2]
[311567413,1705251045799,-306.0,0.00034,2]
[311567414,1705251045808,-1000.0,0.00034,7]
[311567415,1705251045817,-289.5463958,0.00034008,4]
[311567416,1705251045826,-176.89024243,0.00034359,7]
[311567417,1705251045835,-176.89024243,0.00034469,7]
[311567418,1705251045844,-500.0,0.00034592,2]
[311567419,1705251045853,-5000.0,0.00034624,7]
[311567420,1705251045862,-176.89024243,0.00034692,7]
[311567421,1705251045871,-1500.0,0.000348,2]
[311567422,1705251045881,-176.89024243,0.00034868,7]
[311567423,1705251045890,-176.89024243,0.00034875,7]
[311567424,1705251045899,-317.2558752,0.00034978,2]
[311567425,1705251045910,-153.0,0.00034978,2]
[311567426,1705251045919,-198.8089634,0.00034978,2]
[311567427,1705251045929,-153.0,0.00034978,2]
[311567428,1705251045938,-178397.43708,0.00034999,4]
[311567429,1705251045948,-6797.08209082,0.00035,45]
[311567430,1705251045958,-2135.5140438,0.00035,4]
[311567431,1705251045969,-154.9690062,0.00035,6]
[311567432,1705251045978,-591.39358162,0.00035,2]
[311567433,1705251045987,-154.9690062,0.00035,4]
[311567434,1705251046072,-1493.09574604,0.00035,7]
[311567435,1705251046082,-7296.7091627,0.00035,2]
[311567436,1705251046091,-620.01958401,0.00035121,2]
[311567437,1705251046101,-391.0,0.00035192,15]
[311567438,1705251046111,-176.89024243,0.00035226,7]
[311567439,1705251046120,-154.41457912,0.00035273,7]
[311567440,1705251046129,-176.89024243,0.00035323,7]
[311567441,1705251046139,-176.89024243,0.00035405,7]
[311567442,1705251046149,-176.8902425,0.00035541,7]
[311567443,1705251046158,-152.36035951,0.00035589,7]
[311567444,1705251046168,-200.0,0.000356,4]
[311567445,1705251046178,-151.0,0.00035616,4]
[311567446,1705251046187,-383.333102,0.00035616,120]
[311567447,1705251046196,-500.0,0.00035697,2]
[311567448,1705251046206,-34655.95966671,0.00035698,2]
[311567449,1705251046216,-500.0,0.000357,4]
[311567450,1705251046226,-171.50359592,0.0003575,7]
[311567451,1705251046235,-1272.86454547,0.00035789,2]
[311567452,1705251046244,-677.43954104,0.00035798,4]
[311567453,1705251046254,-349.25739292,0.00035798,4]
[311567454,1705251046264,-155.54166956,0.00035798,4]
[311567455,1705251046274,-218.51206177,0.00035798,4]
[311567456,1705251046284,-332.24000245,0.00035798,4]
[311567457,1705251046293,-220.68058373,0.00035798,4]
[311567458,1705251046303,-178.45591819,0.00035798,4]
[311567459,1705251046312,-12992.67944653,0.00035798,4]
[311567460,1705251046322,-642.45734522,0.00035798,4]
[311567461,1705251046331,-250.08638878,0.00035798,4]
[311567462,1705251046341,-980.84075748,0.00035798,4]
[311567463,1705251046351,-175.78075589,0.00035798,4]
[311567464,1705251046361,-309.72112703,0.00035798,4]
[311567465,1705251046370,-155.641337,0.00035798,4]
[311567466,1705251046380,-155.04219613,0.00035798,4]
[311567467,1705251046389,-290.20882611,0.00035798,4]
[311567468,1705251046398,-155.16859934,0.00035798,4]
[311567469,1705251046407,-11644.91471353,0.00035798,4]
[311567470,1705251046417,-554.56998802,0.00035798,4]
[311567471,1705251046426,-290.40149056,0.00035798,4]
[311567472,1705251046436,-268.31978961,0.00035798,4]
[311567473,1705251046445,-332.33085601,0.00035798,4]
[311567474,1705251046454,-301.18213313,0.00035798,4]
[311567475,1705251046464,-208.85195545,0.00035798,4]
[311567476,1705251046474,-155.13761322,0.00035798,4]
[311567477,1705251046483,-9960.93995732,0.00035798,4]
[311567478,1705251046492,-236.11928791,0.00035798,2]
[311567479,1705251046501,-686.20346903,0.00035798,4]
[311567480,1705251046510,-386.84563712,0.00035798,4]
[311567481,1705251046519,-155.2351122,0.00035798,4]
[311567482,1705251046528,-677.62834989,0.00035798,4]
[311567483,1705251046537,-572.08255613,0.00035798,4]
[311567484,1705251046547,-386.21950974,0.00035798,4]
[311567485,1705251046556,-1185.47750698,0.00035798,4]
[311567486,1705251046566,-687.75702701,0.00035798,4]
[311567487,1705251046575,-1273.38801722,0.00035798,2]
[311567488,1705251046584,-3737.97743983,0.00035798,2]
[311567489,1705251046593,-224.21176966,0.00035798,4]
[311567490,1705251046602,-6012.90244909,0.00035798,4]
[311567491,1705251046611,-4918.87947459,0.00035798,4]
[311567493,1705251046620,-155.10081553,0.00035798,4]
[311567494,1705251046629,-155.07753877,0.00035798,4]
[311567496,1705251046638,-250.0,0.00035798,10]
[311567498,1705251046647,-27755.65890337,0.00035799,14]
[311567500,1705251046657,-86775.88565064,0.000358,2]
[311567502,1705251046667,-504.34686902,0.000358,2]
[311567504,1705251046676,-10202.84952288,0.000358,2]
[311567506,1705251046685,-300.0,0.000358,4]
[311567508,1705251046694,-546.95952545,0.000358,4]
[311567510,1705251046703,-320.40143759,0.000358,4]
[311567512,1705251046712,-1822.38176649,0.000358,2]
[311567513,1705251046720,-2080.28320628,0.000358,4]
[311567514,1705251046730,-200.0,0.000358,2]
[311567515,1705251046739,-10014.63894944,0.000358,4]
[311567516,1705251046748,-1057.22440665,0.000358,2]
[311567517,1705251046757,-196.874179,0.000358,2]
[311567518,1705251046766,-41958.16993441,0.000358,30]
[311567519,1705251046776,-1825.333354,0.000358,2]
[311567520,1705251046786,-1825.333354,0.000358,2]
[311567521,1705251046795,-1500.0,0.000358,2]
[311567522,1705251046804,-154.7,0.000358,2]
[311567523,1705251046813,-154.7,0.000358,2]
[311567524,1705251046822,-154.7,0.000358,2]
[311567525,1705251046832,-154.7,0.000358,2]
[311567526,1705251046841,-500.0,0.00035834,2]
[311567527,1705251046850,-500.0,0.00035971,2]
[311567529,1705251046860,-230.28696558,0.00036,4]
[311567530,1705251046869,-60352.40194688,0.00036,2]
[311567533,1705251046886,-1805.32265889,0.00036,2]
[311567534,1705251046896,-809.372665,0.00036,2]
[311567535,1705251046905,-809.372665,0.00036,2]
[311567536,1705251046915,-228.009563,0.00036,2]
[311567537,1705251046924,-228.009563,0.00036,2]
[311567538,1705251046933,-1825.333354,0.00036,2]
[311567539,1705251046942,-1825.333354,0.00036,2]
[311567540,1705251046951,-154.7,0.00036,2]
[311567541,1705251046960,-154.7,0.00036,2]
[311567542,1705251046969,-500.0,0.00036108,2]
[311567543,1705251046978,-500.0,0.00036245,2]
[311567544,1705251046987,-151.48485454,0.000369,2]
[311567545,1705251046996,-151.48485454,0.000369,2]
[311567546,1705251047006,-500.0,0.00037168,10]
[311567547,1705251047015,-5000.0,0.00037598,7]
[311567548,1705251047024,-151.48485454,0.00037638,2]
[311567549,1705251047033,-151.48485454,0.00037638,2]
[311567550,1705251047042,-1483.89816289,0.00038,120]
[311567551,1705251047051,-1500.0,0.0003811,7]
[311567552,1705251047060,-706.11492337,0.00038356,2]
[311567553,1705251047069,-405.67767986,0.00038356,2]
[311567554,1705251047078,-151.48485454,0.00038376,2]
[311567555,1705251047088,-151.48485454,0.00038376,2]
[311567556,1705251047098,-529.60444554,0.00038538,10]
[311567557,1705251047286,-155.00007438,0.00030999,4]
[311567558,1705251047296,-153.0,0.00031752,2]
[311567559,1705251047304,-153.0,0.00033041,2]
[311567560,1705251047313,-153.0,0.00033178,2]
[311567561,1705251047323,-220.39555446,0.00038538,10]
[311567562,1705251047332,-150.0,0.000387,2]
[311567563,1705251047341,-265.0,0.00038711,30]
[311567564,1705251047350,-151.0,0.00038734,4]
[311567565,1705251047359,-1500.0,0.00038795,14]
[311567566,1705251047368,-470.46835769,0.00038795,14]
[311567567,1705251047379,-730.97745579,0.00038795,14]
[311567620,1705251974788,497.46838571,0.0002495,5]
[311567626,1705252045408,2702.10242443,0.00024814,5]
[311567628,1705252105449,260.35384667,0.00024814,7]
[311567679,1705252232168,-154.9690062,0.00021999,4]
[311567680,1705252232177,-492.11246741,0.00021999,2]
[311567697,1705252238860,-1493.42396799,0.00021999,2]
[311567698,1705252238869,-292.83058016,0.00022,4]
[311567699,1705252238879,-187.25074121,0.00022,2]
[311567700,1705252238890,-238.01689219,0.00022,2]
[311567701,1705252238899,-968.20310781,0.00022333,2]
[311567702,1705252238910,-104.88611695,0.00022333,2]
[311567703,1705252238919,-167.269157,0.00022439,2]
[311567704,1705252238928,-1955.76504506,0.00023076,2]
[311567705,1705252238939,-13108.60149803,0.00023076,2]
[311567706,1705252238957,-9835.63345691,0.00023076,2]
[311567707,1705252238966,-167.269157,0.00023459,2]
[311567708,1705252238975,-154.9690062,0.000235,2]
[311567709,1705252238984,-167.269157,0.00024478,2]
[311567710,1705252238993,-200.0,0.00024658,2]
[311567711,1705252239003,-280.0,0.00024658,2]
[311567712,1705252239012,-1823.10005026,0.00024814,2]
[311567713,1705252239021,-155.00310006,0.00024814,2]
[311567714,1705252239030,-174.94849142,0.00024814,2]
[311567715,1705252239040,-155.0697814,0.00024814,2]
[311567716,1705252239049,-3748.50969651,0.00024814,2]
[311567717,1705252239058,-853.57612089,0.00024814,2]
[311567718,1705252239067,-155.07774672,0.00024814,2]
[311567719,1705252239077,-190.0,0.00024814,2]
[311567720,1705252239086,-361.39023911,0.00024814,2]
[311567721,1705252239095,-3945.5094445,0.00024814,2]
[311567722,1705252239104,-155.24617669,0.00024814,2]
[311567723,1705252239114,-6464.54916941,0.00024814,2]
[311567724,1705252239123,-642.95973063,0.00024814,2]